fUST/lending_fUST_20250430
["ID","MTS","AMOUNT","RATE_DAILY","PERIOD"]
[359442054,1746019874189,-650.0,0.00033024,5]
[359442055,1746019874205,-1077.96,0.0003315,2]
[359442056,1746019874214,-480.54,0.0003315,2]
[359442057,1746019874226,-953.6,0.0003315,2]
[359442058,1746019874236,-400.0,0.0003315,2]
[359442059,1746019874245,-676.48,0.0003315,2]
[359442060,1746019874255,-981.89,0.0003315,2]
[359442061,1746019874264,-567.14,0.0003315,2]
[359442062,1746019874274,-869.24,0.0003315,2]
[359442063,1746019874283,-449.45,0.0003315,2]
[359442064,1746019874293,-739.04,0.0003315,2]
[359442065,1746019874304,-910.98,0.0003315,2]
[359442066,1746019874314,-497.84,0.0003315,2]
[359442067,1746019874323,-470.45,0.0003315,2]
[359442068,1746019874332,-1570.19,0.0003315,2]
[359442069,1746019874341,-526.1,0.0003315,2]
[359442070,1746019874351,-1391.98,0.0003315,2]
[359442071,1746019874360,-726.31,0.0003315,2]
[359442072,1746019874370,-549.35,0.0003315,2]
[359442073,1746019874379,-1021.98,0.0003315,2]
[359442074,1746019874390,-419.14,0.0003315,2]
[359442075,1746019874401,-310.84234023,0.0003315,2]
[359442076,1746019874411,-400.0,0.0003315,2]
[359442077,1746019874421,-1018.96,0.0003315,2]
[359442078,1746019874431,-485.09,0.0003315,2]
[359442079,1746019874441,-400.0,0.0003315,2]
[359442080,1746019874453,-513.4379409,0.0003315,2]
[359442081,1746019874463,-744.28,0.0003315,2]
[359442082,1746019874472,-510.2,0.0003315,2]
[359442083,1746019874482,-704.98,0.0003315,2]
[359442084,1746019874491,-588.89,0.0003315,2]
[359442085,1746019874591,-386.0201612,0.0003315,2]
[359442086,1746019874601,-792.91,0.0003315,2]
[359442087,1746019874612,-401.07,0.0003315,2]
[359442088,1746019874622,-387.01575788,0.0003315,2]
[359442089,1746019874632,-531.0,0.0003315,2]
[359442090,1746019874641,-400.0,0.0003315,2]
[359442091,1746019874651,-778.36,0.0003315,2]
[359442092,1746019874660,-492.02,0.0003315,2]
[359442093,1746019874670,-832.99,0.0003315,2]
[359442094,1746019874679,-1743.84,0.0003315,2]
[359442095,1746019874689,-1158.2,0.0003315,2]
[359442096,1746019874702,-930.58,0.0003315,2]
[359442097,1746019874711,-826.23,0.0003315,2]
[359442098,1746019874720,-1830.06,0.0003315,2]
[359442099,1746019874729,-535.41,0.0003315,2]
[359442100,1746019874739,-702.49,0.0003315,2]
[359442101,1746019874749,-673.15,0.0003315,2]
[359442102,1746019874759,-1454.11,0.0003315,2]
[359442103,1746019874768,-935.47,0.0003315,2]
[359442104,1746019874778,-610.88,0.0003315,2]
[359442105,1746019874788,-525.64,0.0003315,2]
[359442106,1746019874797,-422.22,0.0003315,2]
[359442107,1746019874807,-1014.12,0.0003315,2]
[359442108,1746019874817,-643.44,0.0003315,2]
[359442109,1746019874827,-1552.4,0.0003315,2]
[359442110,1746019874837,-1578.34,0.0003315,2]
[359442111,1746019874846,-2133.98,0.0003315,2]
[359442112,1746019874856,-2085.42,0.0003315,2]
[359442113,1746019874867,-1255.91,0.0003315,2]
[359442114,1746019874876,-1954.9,0.0003315,2]
[359442115,1746019874886,-482.75,0.0003315,2]
[359442116,1746019874896,-785.98,0.0003315,2]
[359442117,1746019874906,-4593.88,0.0003315,2]
[359442118,1746019874915,-3156.88,0.0003315,2]
[359442119,1746019874925,-1138.91,0.0003315,2]
[359442120,1746019874935,-1541.01,0.0003315,2]
[359442121,1746019874955,-583.69,0.0003315,2]
[359442122,1746019874964,-569.3,0.0003315,2]
[359442123,1746019874974,-4251.49,0.0003315,2]
[359442124,1746019874984,-899.88,0.0003315,2]
[359442125,1746019874993,-664.92,0.0003315,2]
[359442126,1746019875003,-1069.56,0.0003315,2]
[359442127,1746019875015,-1000.0,0.00033152,5]
[359442128,1746019875025,-1003.6303087,0.00033152,5]
[359442129,1746019875036,-291.60996948,0.00033152,5]
[359442130,1746019875046,-502.66395521,0.00033152,5]
[359442131,1746019875055,-1001.13803781,0.00033152,5]
[359442132,1746019875065,-500.71926778,0.00033152,5]
[359442133,1746019875075,-1000.0,0.00033152,5]
[359442134,1746019875085,-1002.12134361,0.00033152,5]
[359442135,1746019875095,-500.94710656,0.00033152,5]
[359442136,1746019875105,-5000.0,0.00033155,2]
[359442137,1746019875115,-1110.848459,0.00033165,2]
[359442138,1746019875124,-1077.96,0.00033424,2]
[359442139,1746019875135,-480.54,0.00033424,2]
[359442140,1746019875144,-953.6,0.00033424,2]
[359442141,1746019875153,-400.0,0.00033424,2]
[359442142,1746019875163,-676.48,0.00033424,2]
[359442143,1746019875172,-981.89,0.00033424,2]
[359442144,1746019875182,-567.14,0.00033424,2]
[359442145,1746019875191,-869.24,0.00033424,2]
[359442146,1746019875204,-449.45,0.00033424,2]
[359442147,1746019875213,-739.04,0.00033424,2]
[359442148,1746019875223,-910.98,0.00033424,2]
[359442149,1746019875233,-497.84,0.00033424,2]
[359442150,1746019875243,-470.45,0.00033424,2]
[359442151,1746019875252,-1570.19,0.00033424,2]
[359442152,1746019875262,-526.1,0.00033424,2]
[359442153,1746019875271,-1391.98,0.00033424,2]
[359442154,1746019875281,-726.31,0.00033424,2]
[359442155,1746019875295,-549.35,0.00033424,2]
[359442156,1746019875304,-1021.98,0.00033424,2]
[359442157,1746019875314,-419.14,0.00033424,2]
[359442158,1746019875323,-349.63889129,0.00033424,2]
[359442159,1746019875333,-1018.96,0.00033424,2]
[359442160,1746019875342,-485.09,0.00033424,2]
[359442161,1746019875352,-400.0,0.00033424,2]
[359442162,1746019875361,-744.28,0.00033424,2]
[359442163,1746019875370,-510.2,0.00033424,2]
[359442164,1746019875380,-704.98,0.00033424,2]
[359442165,1746019875390,-588.89,0.00033424,2]
[359442166,1746019875399,-792.91,0.00033424,2]
[359442167,1746019875409,-401.07,0.00033424,2]
[359442168,1746019875418,-531.0,0.00033424,2]
[359442169,1746019875428,-548.04911419,0.00033424,2]
[359442170,1746019875439,-778.36,0.00033424,2]
[359442171,1746019875450,-492.02,0.00033424,2]
[359442172,1746019875460,-832.99,0.00033424,2]
[359442173,1746019875470,-1743.84,0.00033424,2]
[359442174,1746019875480,-1158.2,0.00033424,2]
[359442175,1746019875490,-930.58,0.00033424,2]
[359442176,1746019875499,-826.23,0.00033424,2]
[359442177,1746019875510,-1830.06,0.00033424,2]
[359442178,1746019875520,-535.41,0.00033424,2]
[359442179,1746019875529,-702.49,0.00033424,2]
[359442180,1746019875539,-673.15,0.00033424,2]
[359442181,1746019875549,-1454.11,0.00033424,2]
[359442182,1746019875560,-935.47,0.00033424,2]
[359442183,1746019875571,-610.88,0.00033424,2]
[359442184,1746019875581,-525.64,0.00033424,2]
[359442185,1746019875591,-422.22,0.00033424,2]
[359442186,1746019875602,-1014.12,0.00033424,2]
[359442187,1746019875614,-643.44,0.00033424,2]
[359442188,1746019875627,-1552.4,0.00033424,2]
[359442189,1746019875637,-1578.34,0.00033424,2]
[359442190,1746019875648,-2133.98,0.00033424,2]
[359442191,1746019875658,-2085.42,0.00033424,2]
[359442192,1746019875669,-1255.91,0.00033424,2]
[359442193,1746019875681,-1954.9,0.00033424,2]
[359442194,1746019875692,-482.75,0.00033424,2]
[359442195,1746019875703,-785.98,0.00033424,2]
[359442196,1746019875713,-4593.88,0.00033424,2]
[359442197,1746019875722,-3156.88,0.00033424,2]
[359442198,1746019875732,-1138.91,0.00033424,2]
[359442199,1746019875744,-1541.01,0.00033424,2]
[359442200,1746019875755,-583.69,0.00033424,2]
[359442201,1746019875764,-569.3,0.00033424,2]
[359442202,1746019875774,-4251.49,0.00033424,2]
[359442203,1746019875784,-899.88,0.00033424,2]
[359442204,1746019875793,-664.92,0.00033424,2]
[359442205,1746019875802,-1069.56,0.00033424,2]
[359442206,1746019875813,-2500.0,0.00033425,4]
[359442207,1746019875823,-1003.40112922,0.00033452,5]
[359442208,1746019875833,-501.45268968,0.00033452,5]
[359442209,1746019875843,-1000.0,0.00033452,5]
[359442210,1746019875852,-819.68392753,0.00033452,5]
[359442211,1746019875862,-501.46684538,0.00033452,5]
[359442212,1746019875871,-1000.0,0.00033452,5]
[359442213,1746019875880,-1001.21699452,0.00033452,5]
[359442214,1746019875889,-500.77378023,0.00033452,5]
[359442215,1746019875898,-501.43553665,0.00033452,5]
[359442216,1746019875907,-3000.0,0.00033506,60]
[359442217,1746019875917,-1000.0,0.00033552,5]
[359442218,1746019875927,-618.74600356,0.00033552,5]
[359442219,1746019875936,-1001.11700576,0.00033552,5]
[359442220,1746019875946,-510.37670692,0.00033552,5]
[359442221,1746019875957,-1002.21468671,0.00033552,5]
[359442222,1746019875967,-500.95926811,0.00033552,5]
[359442223,1746019875976,-1001.65695482,0.00033552,5]
[359442224,1746019875986,-1001.99906723,0.00033552,5]
[359442225,1746019875995,-904.71967358,0.00033552,3]
[359442226,1746019876005,-1001.63833003,0.00033552,5]
[359442227,1746019876016,-501.08463207,0.00033552,5]
[359442228,1746019876034,-1001.154071,0.00033552,5]
[359442229,1746019876044,-1000.0,0.00033552,5]
[359442230,1746019876054,-471.51310522,0.00033552,5]
[359442231,1746019876064,-771.74093085,0.00033552,5]
[359442232,1746019876073,-1000.0,0.00033552,5]
[359442233,1746019876082,-501.66118809,0.00033552,5]
[359442234,1746019876092,-750.0,0.00033572,5]
[359442235,1746019876102,-197.69,0.00033673,7]
[359442236,1746019876112,-210.85,0.00033673,7]
[359442237,1746019876122,-1077.98803353,0.00033698,2]
[359442238,1746019876132,-480.67099764,0.00033698,2]
[359442239,1746019876141,-953.61273287,0.00033698,2]
[359442240,1746019876151,-286.62930082,0.00033698,2]
[359442241,1746019876160,-676.54860094,0.00033698,2]
[359442242,1746019876170,-982.02255237,0.00033698,2]
[359442243,1746019876180,-567.33268079,0.00033698,2]
[359442244,1746019876189,-869.29994255,0.00033698,2]
[359442245,1746019876203,-449.48113227,0.00033698,2]
[359442246,1746019876212,-739.22924115,0.00033698,2]
[359442247,1746019876223,-911.19713775,0.00033698,2]
[359442248,1746019876232,-497.90660391,0.00033698,2]
[359442249,1746019876242,-470.58,0.00033698,2]
[359442250,1746019876251,-1570.21405796,0.00033698,2]
[359442251,1746019876261,-526.10601089,0.00033698,2]
[359442252,1746019876270,-1392.13,0.00033698,2]
[359442253,1746019876280,-726.34779667,0.00033698,2]
[359442254,1746019876290,-549.46172319,0.00033698,2]
[359442255,1746019876300,-1022.05583887,0.00033698,2]
[359442256,1746019876309,-419.20762537,0.00033698,2]
[359442257,1746019876319,-1019.19992829,0.00033698,2]
[359442258,1746019876329,-485.113564,0.00033698,2]
[359442259,1746019876338,-390.93731906,0.00033698,2]
[359442260,1746019876347,-744.28615395,0.00033698,2]
[359442261,1746019876356,-510.26635387,0.00033698,2]
[359442262,1746019876366,-705.11723267,0.00033698,2]
[359442263,1746019876375,-589.03,0.00033698,2]
[359442264,1746019876385,-793.03793566,0.00033698,2]
[359442265,1746019876395,-401.22412786,0.00033698,2]
[359442266,1746019876404,-531.15681386,0.00033698,2]
[359442267,1746019876414,-778.48240161,0.00033698,2]
[359442268,1746019876423,-492.14856061,0.00033698,2]
[359442269,1746019876433,-833.17723028,0.00033698,2]
[359442270,1746019876442,-1744.01030699,0.00033698,2]
[359442271,1746019876455,-1158.28000979,0.00033698,2]
[359442272,1746019876465,-930.68194569,0.00033698,2]
[359442273,1746019876475,-826.33689651,0.00033698,2]
[359442274,1746019876484,-1830.07362623,0.00033698,2]
[359442275,1746019876583,-535.48,0.00033698,2]
[359442276,1746019876592,-702.49378201,0.00033698,2]
[359442277,1746019876602,-673.37141026,0.00033698,2]
[359442278,1746019876612,-1454.29433633,0.00033698,2]
[359442279,1746019876624,-935.64145832,0.00033698,2]
[359442280,1746019876633,-611.0,0.00033698,2]
[359442281,1746019876643,-525.75314102,0.00033698,2]
[359442282,1746019876654,-422.25449491,0.00033698,2]
[359442283,1746019876663,-1014.28960875,0.00033698,2]
[359442284,1746019876674,-643.62,0.00033698,2]
[359442285,1746019876684,-1552.44,0.00033698,2]
[359442286,1746019876694,-1578.39937943,0.00033698,2]
[359442287,1746019876707,-2134.14336848,0.00033698,2]
[359442288,1746019876717,-2085.61194417,0.00033698,2]
[359442289,1746019876727,-1256.13995595,0.00033698,2]
[359442290,1746019876737,-1954.90830241,0.00033698,2]
[359442291,1746019876747,-482.98,0.00033698,2]
[359442292,1746019876756,-786.01350269,0.00033698,2]
[359442293,1746019876765,-4594.03595073,0.00033698,2]
[359442294,1746019876774,-3156.93336123,0.00033698,2]
[359442295,1746019876784,-1138.92716897,0.00033698,2]
[359442296,1746019876798,-1541.10003543,0.00033698,2]
[359442297,1746019876808,-583.7,0.00033698,2]
[359442298,1746019876818,-569.52907235,0.00033698,2]
[359442299,1746019876827,-4251.55043854,0.00033698,2]
[359442300,1746019876836,-899.94138627,0.00033698,2]
[359442301,1746019876846,-664.97830379,0.00033698,2]
[359442302,1746019876856,-403.0,0.00033727,2]
[359442303,1746019876866,-545.0,0.00033727,2]
[359442304,1746019876875,-1588.77178357,0.00033872,7]
[359442305,1746019876885,-1500.0,0.00033948,5]
[359442306,1746019876895,-24312.00937906,0.00034,29]
[359442307,1746019876904,-6262.59852222,0.00034,30]
[359442308,1746019876914,-124656.29617219,0.00034,7]
[359442309,1746019876924,-47669.60156725,0.00034,5]
[359442310,1746019876934,-160.0,0.00034,7]
[359442311,1746019876943,-3000.0,0.00034054,60]
[359442312,1746019876958,-850.0,0.0003412,5]
[359442313,1746019876968,-5000.0,0.00034155,2]
[359442314,1746019876977,-193.188289,0.00034247,120]
[359442315,1746019876987,-3000.0,0.00034247,4]
[359442316,1746019876998,-1152.0,0.00034318,2]
[359442317,1746019877008,-377.13679376,0.00034383,2]
[359442318,1746019877020,-313.0,0.00034521,3]
[359442319,1746019877030,-892.9114181,0.000346,2]
[359442320,1746019877040,-3000.0,0.00034602,60]
[359442321,1746019877050,-296.519,0.00034665,2]
[359442322,1746019877061,-810.98790743,0.00034668,5]
[359442323,1746019877071,-1574.07,0.000347,30]
[359442324,1746019877080,-5412.16726737,0.00035,10]
[359442325,1746019877089,-264.33347444,0.00035,30]
[359442326,1746019877101,-3042.89395875,0.00035,30]
[359442327,1746019877111,-300.94773564,0.00035,30]
[359442328,1746019877121,-10596.66281259,0.00035,2]
[359442329,1746019877131,-500.0,0.00035,7]
[359442330,1746019877141,-160.0,0.00035,30]
[359442331,1746019877151,-454.752561,0.00035013,2]
[359442332,1746019877161,-494.5814771,0.00035068,4]
[359442333,1746019877171,-10234.77973827,0.000351,2]
[359442334,1746019877181,-3000.0,0.0003515,60]
[359442335,1746019877191,-5000.0,0.00035155,2]
[359442336,1746019877203,-160.0,0.00035253,3]
[359442337,1746019877213,-211.87,0.000353,7]
[359442338,1746019877223,-64126.95,0.000353,30]
[359442339,1746019877233,-12195.0,0.000354,30]
[359442340,1746019877243,-1093.8532198,0.00035408,2]
[359442341,1746019877253,-207.149,0.00035452,5]
[359442342,1746019877263,-44891.477357,0.000355,10]
[359442343,1746019877273,-1403.20848731,0.00035592,5]
[359442344,1746019877283,-2200.0,0.00035623,7]
[359442345,1746019877292,-3000.0,0.00035698,60]
[359442346,1746019877302,-237.0,0.00036,2]
[359442347,1746019877312,-237.0,0.00036,2]
[359442348,1746019877322,-237.0,0.00036,2]
[359442349,1746019877331,-5000.0,0.00036155,2]
[359442350,1746019877342,-184.94776029,0.000362,120]
[359442351,1746019877351,-3000.0,0.00036246,60]
[359442352,1746019877360,-200.0,0.00036253,14]
[359442353,1746019877370,-200.0,0.00036253,14]
[359442354,1746019877379,-201.47445618,0.00036253,14]
[359442355,1746019877389,-160.0,0.0003627,4]
[359442356,1746019877398,-500.0,0.00036392,7]
[359442357,1746019877407,-155.0,0.00036398,2]
[359442358,1746019877417,-600.0,0.00036412,7]
[359442359,1746019877427,-500.0,0.00036448,7]
[359442360,1746019877437,-892.9114181,0.00036455,2]
[359442361,1746019877447,-600.0,0.00036456,7]
[359442362,1746019877459,-600.0,0.00036475,7]
[359442363,1746019877469,-502.13160974,0.00036521,7]
[359442364,1746019877479,-500.0,0.00036635,7]
[359442365,1746019877488,-600.0,0.00036654,7]
[359442366,1746019877498,-421.37435881,0.00036681,2]
[359442367,1746019877508,-160.0,0.00036686,2]
[359442368,1746019877518,-152.0,0.00036712,3]
[359442369,1746019877527,-403.0,0.00036727,2]
[359442370,1746019877539,-545.0,0.00036727,2]
[359442371,1746019877548,-3000.0,0.00036794,60]
[359442372,1746019877557,-1574.07,0.000368,30]
[359442373,1746019877567,-600.0,0.00036809,7]
[359442374,1746019877579,-600.0,0.00036954,7]
[359442375,1746019877591,-286.283637,0.00036963,2]
[359442376,1746019877600,-500.0,0.00036973,5]
[359442377,1746019877611,-500.0,0.00036984,7]
[359442378,1746019877620,-211.87,0.00037,7]
[359442379,1746019877631,-64126.95,0.00037,30]
[359442380,1746019877641,-12195.0,0.00037,30]
[359442381,1746019877651,-174383.24869978,0.00037,2]
[359442382,1746019877662,-500.0,0.00037047,7]
[359442383,1746019877671,-288.7023,0.000371,120]
[359442384,1746019877680,-600.0,0.00037131,7]
[359442385,1746019877690,-1613.0,0.00037181,2]
[359442386,1746019877701,-160.0,0.00037287,5]
[359442387,1746019877710,-3000.0,0.00037342,60]
[359442388,1746019877720,-600.0,0.00037356,7]
[359442389,1746019877729,-600.0,0.00037404,7]
[359442390,1746019877739,-500.0,0.00037406,7]
[359442391,1746019877748,-759.10929685,0.00037521,5]
[359442392,1746019877757,-690.66,0.00037521,88]
[359442393,1746019877767,-500.0,0.00037546,7]
[359442394,1746019877776,-690.66,0.00037671,66]
[359442395,1746019877786,-162.276085,0.00037789,2]
[359442396,1746019877795,-1007.70028819,0.000378,2]
[359442397,1746019877805,-500.0,0.00037805,7]
[359442398,1746019877814,-690.66,0.00037821,51]
[359442399,1746019877824,-600.0,0.00037842,7]
[359442400,1746019877833,-3000.0,0.0003789,60]
[359442401,1746019877842,-690.66,0.00037971,54]
[359442402,1746019877851,-20100.20920404,0.00038,5]
[359442403,1746019877861,-2000.0,0.00038,120]
[359442404,1746019877871,-2000.0,0.00038,120]
[359442405,1746019877879,-2000.0,0.00038,120]
[359442406,1746019877889,-2000.0,0.00038,120]
[359442407,1746019877899,-2000.0,0.00038,120]
[359442408,1746019877910,-2000.0,0.00038,120]
[359442409,1746019877920,-2000.0,0.00038,120]
[359442410,1746019877931,-2000.0,0.00038,120]
[359442411,1746019877939,-2000.0,0.00038,120]
[359442412,1746019877948,-100000.0,0.00038,30]
[359442413,1746019877962,-100000.0,0.00038,30]
[359442414,1746019877972,-100000.0,0.00038,30]
[359442415,1746019877981,-264769.0473007,0.00038,30]
[359442416,1746019878084,-94437.97949947,0.00038,30]
[359442417,1746019878213,-151.0,0.00027397,7]
[359442418,1746019878223,-151.0,0.00027397,7]
[359442419,1746019878233,-128.273926,0.00027666,7]
[359442420,1746019878245,-22.726074,0.00027666,7]
[359442421,1746019878352,-151.0,0.00027671,7]
[359442422,1746019878362,-151.0,0.00027673,7]
[359442423,1746019878372,-151.0,0.00027945,7]
[359442424,1746019878381,-151.0,0.00027945,7]
[359442425,1746019878391,-151.0,0.00028,7]
[359442426,1746019878401,-1069.67828911,0.00033698,2]
[359442427,1746019878411,-34385.09331479,0.00038,30]
[359442441,1746020557615,3473.10232322,0.0002,120]
[359442519,1746020739138,-8060.0,0.000245,2]
[359442520,1746020739159,-300.0,0.00024599,2]
[359442521,1746020739179,-300.0,0.00024599,2]
[359442522,1746020739200,-1200.0,0.00024599,2]
[359442523,1746020739221,-321.72428169,0.00024606,2]
[359442524,1746020739241,-2186.12716392,0.00024606,2]
[359442525,1746020739262,-250.0,0.00024706,2]
[359442526,1746020739283,-1000.0,0.00024806,2]
[359442527,1746020739304,-6373.3231666,0.00024817,2]
[359442528,1746020739324,-393.079837,0.00024907,2]
[359442529,1746020739345,-152.0,0.00025062,2]
[359442530,1746020739367,-169.0,0.00025626,2]
[359442531,1746020739393,-9543.5038222,0.00025629,2]
[359442532,1746020739417,-967.77006455,0.0002579,2]
[359442533,1746020739440,-396.27304258,0.0002588,2]
[359442534,1746020739460,-426.43397655,0.000259,2]
[359442535,1746020739480,-420.0,0.0002666,2]
[359442536,1746020739501,-261.785545,0.00026694,2]
[359442537,1746020739522,-182.04053198,0.00027185,2]
[359442538,1746020739542,-160.0,0.00027185,2]
[359442539,1746020739563,-160.0,0.00027185,2]
[359442540,1746020739584,-421.37435881,0.00027185,2]
[359442541,1746020739605,-461.70763468,0.00027308,2]
[359442542,1746020739626,-354.77679867,0.00027397,2]
[359442543,1746020739650,-400.0,0.00027397,2]
[359442544,1746020739670,-941.32,0.00027397,2]
[359442545,1746020739690,-400.0,0.00027397,2]
[359442546,1746020739711,-400.0,0.00027397,2]
[359442547,1746020739731,-495.13939691,0.00027397,2]
[359442548,1746020739752,-400.0,0.00027397,2]
[359442549,1746020739772,-400.0,0.00027397,2]
[359442550,1746020739792,-400.0,0.00027397,2]
[359442551,1746020739811,-400.0,0.00027397,2]
[359442552,1746020739832,-400.0,0.00027397,2]
[359442553,1746020739852,-400.0,0.00027397,2]
[359442554,1746020739874,-400.0,0.00027397,2]
[359442555,1746020739898,-400.0,0.00027397,2]
[359442556,1746020739919,-506.24296459,0.00027397,2]
[359442557,1746020739940,-400.0,0.00027397,2]
[359442558,1746020739962,-193.188289,0.00027397,120]
[359442559,1746020739983,-999.763613,0.00027397,2]
[359442560,1746020740006,-167.0,0.00027397,3]
[359442561,1746020740028,-500.0,0.00027588,10]
[359442562,1746020740051,-400.0,0.00027671,2]
[359442563,1746020740073,-941.32,0.00027671,2]
[359442564,1746020740094,-400.0,0.00027671,2]
[359442565,1746020740115,-400.0,0.00027945,2]
[359442566,1746020740135,-941.32,0.00027945,2]
[359442567,1746020740160,-400.0,0.00027945,2]
[359442568,1746020740182,-291.89,0.00028219,2]
[359442569,1746020740202,-941.32,0.00028219,2]
[359442570,1746020740222,-400.0,0.00028219,2]
[359442571,1746020740245,-174.83650694,0.00028228,2]
[359442572,1746020740266,-400.0,0.00028272,2]
[359442573,1746020740287,-400.0,0.00028272,2]
[359442574,1746020740310,-400.0,0.00028272,2]
[359442575,1746020740330,-400.0,0.00028272,2]
[359442576,1746020740356,-400.0,0.00028272,2]
[359442577,1746020740377,-400.0,0.00028272,2]
[359442578,1746020740402,-400.0,0.00028272,2]
[359442579,1746020740424,-400.0,0.00028272,2]
[359442580,1746020740446,-400.0,0.00028272,2]
[359442581,1746020740677,-400.0,0.00028272,2]
[359442582,1746020740701,-400.0,0.00028272,2]
[359442583,1746020740722,-400.0,0.00028272,2]
[359442584,1746020740743,-482.75,0.00028272,2]
[359442585,1746020740764,-400.0,0.00028272,2]
[359442586,1746020740785,-400.0,0.00028272,2]
[359442587,1746020740806,-521.1,0.00028272,2]
[359442588,1746020740827,-400.0,0.00028272,2]
[359442589,1746020740850,-400.0,0.00028272,2]
[359442590,1746020740872,-400.0,0.00028272,2]
[359442591,1746020740894,-500.0,0.00028329,5]
[359442592,1746020740914,-300.0,0.00028329,5]
[359442593,1746020740935,-458.80083307,0.00028329,5]
[359442594,1746020740955,-400.0,0.00028492,2]
[359442595,1746020740975,-400.0,0.00028492,2]
[359442596,1746020740998,-400.0,0.00028492,2]
[359442597,1746020741020,-400.0,0.00028492,2]
[359442598,1746020741040,-400.0,0.00028492,2]
[359442599,1746020741061,-400.0,0.00028492,2]
[359442600,1746020741081,-400.0,0.00028492,2]
[359442601,1746020741102,-400.0,0.00028492,2]
[359442602,1746020741125,-400.0,0.00028492,2]
[359442603,1746020741153,-400.0,0.00028492,2]
[359442604,1746020741174,-941.32,0.00028493,2]
[359442605,1746020741196,-400.0,0.00028493,2]
[359442606,1746020741217,-403.0,0.00028494,2]
[359442607,1746020741240,-545.0,0.00028494,2]
[359442608,1746020741262,-400.0,0.00028546,2]
[359442609,1746020741284,-400.0,0.00028546,2]
[359442610,1746020741308,-400.0,0.00028546,2]
[359442611,1746020741333,-400.0,0.00028546,2]
[359442612,1746020741359,-400.0,0.00028546,2]
[359442613,1746020741381,-400.0,0.00028546,2]
[359442614,1746020741406,-385.98,0.00028546,2]
[359442615,1746020741429,-400.0,0.00028546,2]
[359442616,1746020741452,-223.22785456,0.0002872,2]
[359442617,1746020741473,-400.0,0.00028766,2]
[359442618,1746020741493,-400.0,0.00028766,2]
[359442619,1746020741513,-392.91,0.00028766,2]
[359442620,1746020741535,-400.0,0.00028766,2]
[359442621,1746020741556,-400.0,0.00028766,2]
[359442622,1746020741578,-169.3,0.00028766,2]
[359442623,1746020741599,-499.88,0.00028766,2]
[359442624,1746020741624,-941.32,0.00028767,2]
[359442625,1746020741646,-400.0,0.00028767,2]
[359442626,1746020741667,-400.0,0.0002882,2]
[359442627,1746020741691,-400.0,0.0002882,2]
[359442628,1746020741717,-400.0,0.0002882,2]
[359442629,1746020741738,-400.0,0.0002882,2]
[359442630,1746020741759,-400.0,0.0002882,2]
[359442631,1746020741780,-400.0,0.0002882,2]
[359442632,1746020741801,-400.0,0.0002882,2]
[359442633,1746020741821,-501.55211731,0.00028831,5]
[359442634,1746020741840,-501.03717307,0.00028831,5]
[359442635,1746020741860,-500.0,0.00028854,5]
[359442636,1746020741880,-422.10997939,0.00028854,5]
[359442637,1746020741903,-593.15966862,0.00028854,5]
[359442638,1746020741924,-587.0,0.00028893,2]
[359442639,1746020741943,-500.0,0.00028925,5]
[359442640,1746020741964,-400.0,0.0002904,2]
[359442641,1746020741984,-400.0,0.0002904,2]
[359442642,1746020742008,-400.0,0.0002904,2]
[359442643,1746020742028,-400.0,0.0002904,2]